fUSD/lending_fUSD_20260531
["ID","MTS","AMOUNT","RATE_DAILY","PERIOD"]
[423537459,1780203040000,-1129.18,0.00014899,2]
[423537460,1780203040000,-33237.5546,0.000149,2]
[423537399,1780203040000,-500.0,0.00014307,2]
[423537448,1780203040000,-154.82,0.00014885,2]
[423537428,1780203040000,-154.82,0.00014413,2]
[423537438,1780203040000,-250.0,0.00014799,2]
[423537431,1780203040000,-500.0,0.00014592,2]
[423537401,1780203040000,-500.0,0.00014307,2]
[423537403,1780203040000,-500.0,0.00014307,2]
[423537405,1780203040000,-500.0,0.00014307,2]
[423537406,1780203040000,-500.0,0.00014307,2]
[423537402,1780203040000,-500.0,0.00014307,2]
[423537404,1780203040000,-500.0,0.00014307,2]
[423537407,1780203040000,-500.0,0.00014307,2]
[423537408,1780203040000,-500.0,0.00014307,2]
[423537410,1780203040000,-500.0,0.00014307,2]
[423537429,1780203040000,-2351.0,0.00014437,2]
[423537409,1780203040000,-500.0,0.00014307,2]
[423537411,1780203040000,-500.0,0.00014307,2]
[423537413,1780203040000,-500.0,0.00014307,2]
[423537414,1780203040000,-500.0,0.00014307,2]
[423537415,1780203040000,-501.26274913,0.00014307,2]
[423537412,1780203040000,-500.0,0.00014307,2]
[423537418,1780203040000,-892.92,0.00014307,2]
[423537433,1780203040000,-293.174121,0.00014602,2]
[423537416,1780203040000,-892.92,0.00014307,2]
[423537427,1780203040000,-166.66,0.00014384,2]
[423537423,1780203040000,-235.0,0.00014307,2]
[423537424,1780203040000,-433.0,0.00014311,2]
[423537426,1780203040000,-555.70477392,0.00014348,2]
[423537430,1780203040000,-154.82,0.0001457,2]
[423537421,1780203040000,-500.0,0.00014307,2]
[423537422,1780203040000,-508.41266581,0.00014307,2]
[423537419,1780203040000,-892.92,0.00014307,2]
[423537420,1780203040000,-892.92,0.00014307,2]
[423537417,1780203040000,-892.92,0.00014307,2]
[423537425,1780203040000,-500.0,0.00014318,2]
[423537507,1780203041000,-1129.18,0.0001497,2]
[423537506,1780203041000,-1129.18,0.0001497,2]
[423537510,1780203041000,-4868.0909311,0.00014971,2]
[423537508,1780203041000,-1129.18,0.0001497,2]
[423537505,1780203041000,-1129.18,0.0001497,2]
[423537503,1780203041000,-500.0,0.0001497,2]
[423537500,1780203041000,-1242.35,0.0001497,2]
[423537501,1780203041000,-500.0,0.0001497,2]
[423537499,1780203041000,-1242.35,0.0001497,2]
[423537498,1780203041000,-1242.35,0.0001497,2]
[423537495,1780203041000,-500.0,0.0001497,2]
[423537509,1780203041000,-321.46293792,0.0001497,2]
[423537502,1780203041000,-500.0,0.0001497,2]
[423537511,1780203041000,-15436.9130274,0.00014971,2]
[423537526,1780203041000,-509.97,0.00014999,2]
[423537512,1780203041000,-984478.6964079,0.00014971,2]
[423537515,1780203041000,-4212.9995203,0.00014971,2]
[423537514,1780203041000,-235.0,0.00014971,2]
[423537513,1780203041000,-603477.9504152,0.00014971,2]
[423537516,1780203041000,-151.0,0.00014997,2]
[423537517,1780203041000,-500.0,0.00014998,2]
[423537520,1780203041000,-619.27919019,0.00014999,2]
[423537522,1780203041000,-500.0,0.00014999,2]
[423537521,1780203041000,-500.0,0.00014999,2]
[423537518,1780203041000,-500.0,0.00014998,2]
[423537519,1780203041000,-500.0,0.00014999,2]
[423537523,1780203041000,-500.0,0.00014999,2]
[423537527,1780203041000,-509.97,0.00014999,2]
[423537493,1780203041000,-500.0,0.0001497,2]
[423537504,1780203041000,-500.0,0.0001497,2]
[423537497,1780203041000,-1242.35,0.0001497,2]
[423537463,1780203041000,-230.84602445,0.000149,2]
[423537496,1780203041000,-1242.35,0.0001497,2]
[423537464,1780203041000,-230.84602445,0.000149,2]
[423537465,1780203041000,-2448.39133378,0.000149,2]
[423537468,1780203041000,-509.97,0.0001497,2]
[423537467,1780203041000,-509.97,0.0001497,2]
[423537466,1780203041000,-509.97,0.0001497,2]
[423537471,1780203041000,-500.0,0.0001497,2]
[423537469,1780203041000,-509.97,0.0001497,2]
[423537470,1780203041000,-509.97,0.0001497,2]
[423537472,1780203041000,-500.0,0.0001497,2]
[423537473,1780203041000,-500.0,0.0001497,2]
[423537474,1780203041000,-500.0,0.0001497,2]
[423537476,1780203041000,-500.0,0.0001497,2]
[423537477,1780203041000,-500.0,0.0001497,2]
[423537478,1780203041000,-500.0,0.0001497,2]
[423537475,1780203041000,-174.18899724,0.0001497,2]
[423537479,1780203041000,-500.0,0.0001497,2]
[423537481,1780203041000,-500.0,0.0001497,2]
[423537483,1780203041000,-500.0,0.0001497,2]
[423537485,1780203041000,-500.0,0.0001497,2]
[423537480,1780203041000,-500.0,0.0001497,2]
[423537484,1780203041000,-500.0,0.0001497,2]
[423537482,1780203041000,-500.0,0.0001497,2]
[423537486,1780203041000,-500.0,0.0001497,2]
[423537489,1780203041000,-500.0,0.0001497,2]
[423537490,1780203041000,-500.0,0.0001497,2]
[423537488,1780203041000,-500.0,0.0001497,2]
[423537487,1780203041000,-500.0,0.0001497,2]
[423537491,1780203041000,-511.96171548,0.0001497,2]
[423537492,1780203041000,-500.0,0.0001497,2]
[423537494,1780203041000,-500.0,0.0001497,2]
[423537524,1780203041000,-510.61849311,0.00014999,2]
[423537534,1780203041000,-500.0,0.00014999,2]
[423537525,1780203041000,-509.97,0.00014999,2]
[423537563,1780203041000,-500.0,0.00014999,2]
[423537560,1780203041000,-500.0,0.00014999,2]
[423537564,1780203041000,-500.0,0.00014999,2]
[423537568,1780203041000,-500.0,0.00014999,2]
[423537566,1780203041000,-500.0,0.00014999,2]
[423537567,1780203041000,-500.0,0.00014999,2]
[423537565,1780203041000,-500.0,0.00014999,2]
[423537569,1780203041000,-500.0,0.00014999,2]
[423537571,1780203041000,-1242.35,0.00014999,2]
[423537570,1780203041000,-500.0,0.00014999,2]
[423537572,1780203041000,-1242.35,0.00014999,2]
[423537575,1780203041000,-1242.35,0.00014999,2]
[423537576,1780203041000,-1242.35,0.00014999,2]
[423537573,1780203041000,-1242.35,0.00014999,2]
[423537574,1780203041000,-1242.35,0.00014999,2]
[423537577,1780203041000,-500.0,0.00014999,2]
[423537580,1780203041000,-1129.18,0.00014999,2]
[423537579,1780203041000,-323.35560358,0.00014999,2]
[423537578,1780203041000,-500.0,0.00014999,2]
[423537581,1780203041000,-1129.18,0.00014999,2]
[423537582,1780203041000,-235.0,0.00014999,2]
[423537586,1780203041000,-1129.18,0.00014999,2]
[423537588,1780203041000,-480.88,0.00015,2]
[423537583,1780203041000,-1129.18,0.00014999,2]
[423537585,1780203041000,-1129.18,0.00014999,2]
[423537584,1780203041000,-1129.18,0.00014999,2]
[423537587,1780203041000,-1450900.0710637,0.00015,2]
[423537591,1780203041000,-151.0,0.00015,2]
[423537528,1780203041000,-509.97,0.00014999,2]
[423537562,1780203041000,-500.0,0.00014999,2]
[423537559,1780203041000,-500.0,0.00014999,2]
[423537589,1780203041000,-151.0,0.00015,2]
[423537558,1780203041000,-500.0,0.00014999,2]
[423537561,1780203041000,-500.0,0.00014999,2]
[423537529,1780203041000,-509.97,0.00014999,2]
[423537531,1780203041000,-500.0,0.00014999,2]
[423537533,1780203041000,-237.55199834,0.00014999,2]
[423537590,1780203041000,-200.0,0.00015,2]
[423537530,1780203041000,-509.97,0.00014999,2]
[423537535,1780203041000,-500.0,0.00014999,2]
[423537536,1780203041000,-500.0,0.00014999,2]
[423537537,1780203041000,-500.0,0.00014999,2]
[423537540,1780203041000,-240.80905299,0.00014999,2]
[423537542,1780203041000,-892.92,0.00014999,2]
[423537541,1780203041000,-892.92,0.00014999,2]
[423537538,1780203041000,-500.0,0.00014999,2]
[423537539,1780203041000,-500.0,0.00014999,2]
[423537532,1780203041000,-500.0,0.00014999,2]
[423537543,1780203041000,-892.92,0.00014999,2]
[423537544,1780203041000,-892.92,0.00014999,2]
[423537554,1780203041000,-893.094766,0.00014999,2]
[423537555,1780203041000,-490.7648361,0.00014999,2]
[423537552,1780203041000,-892.92,0.00014999,2]
[423537556,1780203041000,-500.0,0.00014999,2]
[423537553,1780203041000,-892.92,0.00014999,2]
[423537557,1780203041000,-500.0,0.00014999,2]
[423537546,1780203041000,-892.92,0.00014999,2]
[423537550,1780203041000,-892.92,0.00014999,2]
[423537548,1780203041000,-892.92,0.00014999,2]
[423537549,1780203041000,-892.92,0.00014999,2]
[423537545,1780203041000,-892.92,0.00014999,2]
[423537547,1780203041000,-892.92,0.00014999,2]
[423537551,1780203041000,-892.92,0.00014999,2]
[423537636,1780203042000,-500.0,0.00015688,2]
[423537631,1780203042000,-500.0,0.00015414,2]
[423537632,1780203042000,-200.0,0.00015455,2]
[423537628,1780203042000,-200.0,0.00015301,2]
[423537630,1780203042000,-640.0,0.00015375,2]
[423537627,1780203042000,-42917.98793172,0.00015235,2]
[423537626,1780203042000,-562.78,0.00015183,2]
[423537625,1780203042000,-200.0,0.0001515,2]
[423537635,1780203042000,-200.0,0.00015609,2]
[423537622,1780203042000,-500.0,0.0001514,2]
[423537629,1780203042000,-177.16,0.00015345,2]
[423537623,1780203042000,-1350.67,0.00015143,2]
[423537640,1780203042000,-177.16,0.00015984,2]
[423537634,1780203042000,-736.0,0.000156,2]
[423537637,1780203042000,-2000.0,0.00015699,2]
[423537638,1780203042000,-3292.0,0.0001588,2]
[423537639,1780203042000,-566.7554006,0.00015962,2]
[423537641,1780203042000,-778.64982,0.00016,2]
[423537642,1780203042000,-300.0,0.00016,2]
[423537644,1780203042000,-444.18929726,0.00016366,2]
[423537643,1780203042000,-1129.18,0.00016085,2]
[423537645,1780203042000,-1493.1,0.00016438,2]
[423537646,1780203042000,-877.55975484,0.00016438,2]
[423537648,1780203042000,-649.601898,0.00016438,2]
[423537621,1780203042000,-489.165112,0.00015068,2]
[423537650,1780203042000,-649.601898,0.00016438,2]
[423537633,1780203042000,-622.96,0.00015482,2]
[423537624,1780203042000,-337.67,0.00015143,2]
[423537605,1780203042000,-1364.156976,0.00015,2]
[423537617,1780203042000,-64319.31788386,0.00015029,2]
[423537649,1780203042000,-649.601898,0.00016438,2]
[423537593,1780203042000,-151.0,0.00015,2]
[423537592,1780203042000,-151.0,0.00015,2]
[423537594,1780203042000,-151.0,0.00015,2]
[423537595,1780203042000,-218.498777,0.00015,2]
[423537598,1780203042000,-218.498777,0.00015,2]
[423537596,1780203042000,-218.498777,0.00015,2]
[423537599,1780203042000,-151.0,0.00015,2]
[423537597,1780203042000,-218.498777,0.00015,2]
[423537600,1780203042000,-151.0,0.00015,2]
[423537601,1780203042000,-151.0,0.00015,2]
[423537604,1780203042000,-1364.156976,0.00015,2]
[423537602,1780203042000,-1364.156976,0.00015,2]
[423537607,1780203042000,-235.0,0.00015,2]
[423537606,1780203042000,-151.0,0.00015,2]
[423537603,1780203042000,-1364.156976,0.00015,2]
[423537610,1780203042000,-1188.276205,0.00015,2]
[423537611,1780203042000,-1188.276205,0.00015,2]
[423537608,1780203042000,-237.57028704,0.00015,2]
[423537612,1780203042000,-1188.276205,0.00015,2]
[423537609,1780203042000,-1188.276205,0.00015,2]
[423537613,1780203042000,-151.0,0.00015,2]
[423537614,1780203042000,-151.0,0.00015,2]
[423537615,1780203042000,-154.820011,0.00015,2]
[423537616,1780203042000,-151.0,0.00015,2]
[423537618,1780203042000,-489.165112,0.00015068,2]
[423537619,1780203042000,-489.165112,0.00015068,2]
[423537620,1780203042000,-489.165112,0.00015068,2]
[423537647,1780203042000,-649.601898,0.00016438,2]
[423537655,1780203042000,-6619.23715763,0.000165,2]
[423537651,1780203042000,-2576.227454,0.00016438,2]
[423537685,1780203042000,-1252.0,0.0001701,2]
[423537686,1780203042000,-150.0,0.00017034,2]
[423537690,1780203042000,-150.0,0.00017209,2]
[423537692,1780203042000,-177.16,0.00017263,2]
[423537689,1780203042000,-150.0,0.00017209,2]
[423537691,1780203042000,-150.0,0.00017209,2]
[423537688,1780203042000,-2000.0,0.00017126,2]
[423537687,1780203042000,-150.0,0.00017121,2]
[423537693,1780203042000,-150.0,0.00017297,2]
[423537694,1780203042000,-480.88,0.000173,2]
[423537695,1780203042000,-150.0,0.00017385,2]
[423537696,1780203042000,-150.0,0.00017414,2]
[423537683,1780203042000,-150.0,0.00016946,2]
[423537697,1780203042000,-3727.0,0.00017468,2]
[423537699,1780203042000,-150.0,0.00017516,2]
[423537700,1780203042000,-150.0,0.0001756,2]
[423537701,1780203042000,-28061.07177221,0.00017575,2]
[423537703,1780203042000,-150.0,0.00017648,2]
[423537702,1780203042000,-150.0,0.00017619,2]
[423537704,1780203042000,-793.55267586,0.000177,2]
[423537705,1780203042000,-150.0,0.00017736,2]
[423537706,1780203042000,-150.0,0.00017824,2]
[423537707,1780203042000,-150.0,0.00017824,2]
[423537708,1780203042000,-150.0,0.00017824,2]
[423537710,1780203042000,-150.0,0.00017912,2]
[423537652,1780203042000,-2576.227454,0.00016438,2]
[423537698,1780203042000,-150.0,0.00017473,2]
[423537684,1780203042000,-150.0,0.00017004,2]
[423537709,1780203042000,-1240.14156078,0.0001789,2]
[423537680,1780203042000,-235.31,0.00016922,2]
[423537681,1780203042000,-9999.99,0.00016922,2]
[423537656,1780203042000,-13071.60934838,0.000165,2]
[423537657,1780203042000,-1000.0,0.000165,2]
[423537654,1780203042000,-2576.227454,0.00016438,2]
[423537658,1780203042000,-150.0,0.00016595,2]
[423537662,1780203042000,-150.0,0.00016595,2]
[423537659,1780203042000,-150.0,0.00016595,2]
[423537660,1780203042000,-150.0,0.00016595,2]
[423537663,1780203042000,-42917.98793172,0.00016605,2]
[423537661,1780203042000,-150.0,0.00016595,2]
[423537665,1780203042000,-295.05,0.00016637,2]
[423537664,1780203042000,-177.16,0.00016624,2]
[423537666,1780203042000,-150.0,0.00016682,2]
[423537653,1780203042000,-2576.227454,0.00016438,2]
[423537670,1780203042000,-1242.35,0.00016695,2]
[423537682,1780203042000,-9999.99,0.00016922,2]
[423537679,1780203042000,-9999.99,0.00016922,2]
[423537676,1780203042000,-640.0,0.00016913,2]
[423537677,1780203042000,-999.99,0.00016922,2]
[423537667,1780203042000,-509.97,0.00016695,2]
[423537674,1780203042000,-150.0,0.00016858,2]
[423537673,1780203042000,-150.0,0.00016799,2]
[423537675,1780203042000,-622.96,0.00016889,2]
[423537672,1780203042000,-150.0,0.0001677,2]
[423537671,1780203042000,-911.89,0.00016767,2]
[423537668,1780203042000,-314.58260973,0.00016695,2]
[423537669,1780203042000,-500.0,0.00016695,2]
[423537678,1780203042000,-150.99,0.00016922,2]
[423537748,1780203043000,-919.667051,0.00019178,2]
[423537753,1780203043000,-919.667051,0.00019178,2]
[423537757,1780203043000,-151.0,0.00019178,2]
[423537750,1780203043000,-919.667051,0.00019178,2]
[423537741,1780203043000,-518.696371,0.00019178,2]
[423537746,1780203043000,-221.043836,0.00019178,2]
[423537743,1780203043000,-221.043836,0.00019178,2]
[423537744,1780203043000,-221.043836,0.00019178,2]
[423537745,1780203043000,-221.043836,0.00019178,2]
[423537742,1780203043000,-518.696371,0.00019178,2]
[423537758,1780203043000,-42917.98793172,0.00019347,2]
[423537755,1780203043000,-919.667051,0.00019178,2]
[423537765,1780203043000,-1129.18,0.00019999,2]
[423537760,1780203043000,-480.88,0.000195,2]
[423537761,1780203043000,-509.97,0.00019999,2]
[423537763,1780203043000,-1129.18,0.00019999,2]
[423537762,1780203043000,-1242.35,0.00019999,2]
[423537764,1780203043000,-1129.18,0.00019999,2]
[423537766,1780203043000,-1129.18,0.00019999,2]
[423537767,1780203043000,-1129.38532815,0.00019999,2]
[423537768,1780203043000,-722.0,0.0002,2]
[423537770,1780203043000,-265.0,0.0002,2]
[423537769,1780203043000,-796.0,0.0002,2]
[423537772,1780203043000,-13405.53,0.0002,2]
[423537737,1780203043000,-1066.24170865,0.00019,2]
[423537759,1780203043000,-500.0,0.00019442,2]
[423537773,1780203043000,-233.0,0.0002,2]
[423537725,1780203043000,-150.0,0.00018438,2]
[423537736,1780203043000,-5239.34559602,0.00019,2]
[423537712,1780203043000,-150.0,0.00017999,2]
[423537711,1780203043000,-42917.98793172,0.00017976,2]
[423537713,1780203043000,-238.90847261,0.00018,2]
[423537716,1780203043000,-150.0,0.00018029,2]
[423537714,1780203043000,-1208.20134932,0.00018,2]
[423537717,1780203043000,-1129.18,0.00018062,2]
[423537718,1780203043000,-150.0,0.00018087,2]
[423537719,1780203043000,-1802.96564414,0.000181,2]
[423537715,1780203043000,-350.0,0.00018,2]
[423537722,1780203043000,-150.0,0.00018263,2]
[423537723,1780203043000,-150.0,0.00018351,2]
[423537721,1780203043000,-150.0,0.00018233,2]
[423537724,1780203043000,-1493.1,0.0001841,2]
[423537720,1780203043000,-150.0,0.00018175,2]
[423537727,1780203043000,-153.77401671,0.00018438,2]
[423537728,1780203043000,-150.0,0.00018438,2]
[423537729,1780203043000,-269.1557045,0.00018438,2]
[423537726,1780203043000,-150.0,0.00018438,2]
[423537730,1780203043000,-640.0,0.0001845,2]
[423537735,1780203043000,-1129.18,0.00018999,2]
[423537733,1780203043000,-548.0,0.0001854,2]
[423537734,1780203043000,-500.0,0.00018875,2]
[423537731,1780203043000,-509.97,0.00018451,2]
[423537732,1780203043000,-1242.35,0.00018451,2]
[423537738,1780203043000,-101004.92523113,0.00019,2]
[423537739,1780203043000,-518.696371,0.00019178,2]
[423537771,1780203043000,-1801.0,0.0002,2]
[423537740,1780203043000,-518.696371,0.00019178,2]
[423537776,1780203043000,-400.0,0.0002,2]
[423537807,1780203043000,-151.0,0.00020365,2]
[423537810,1780203043000,-151.0,0.00020365,2]
[423537809,1780203043000,-151.0,0.00020365,2]
[423537811,1780203043000,-151.0,0.00020365,2]
[423537808,1780203043000,-151.0,0.00020365,2]
[423537806,1780203043000,-151.0,0.00020365,2]
[423537813,1780203043000,-1493.1,0.00020381,2]
[423537812,1780203043000,-151.0,0.00020365,2]
[423537815,1780203043000,-200.0,0.00020402,2]
[423537814,1780203043000,-200.0,0.00020402,2]
[423537816,1780203043000,-200.0,0.00020606,2]
[423537819,1780203043000,-340.05630358,0.00020703,2]
[423537818,1780203043000,-500.0,0.00020626,2]
[423537821,1780203043000,-191.34,0.000208,2]
[423537820,1780203043000,-42917.98793172,0.00020718,2]
[423537823,1780203043000,-200.0,0.00020812,2]
[423537822,1780203043000,-200.0,0.00020812,2]
[423537825,1780203043000,-796.0,0.00021,2]
[423537824,1780203043000,-2157.14243826,0.00020913,2]
[423537826,1780203043000,-265.0,0.00021,2]
[423537829,1780203043000,-341.0,0.00021,2]
[423537827,1780203043000,-1801.0,0.00021,2]
[423537828,1780203043000,-233.0,0.00021,2]
[423537830,1780203043000,-154.0,0.00021,2]
[423537774,1780203043000,-341.0,0.0002,2]
[423537805,1780203043000,-151.0,0.00020365,2]
[423537803,1780203043000,-151.0,0.00020365,2]
[423537817,1780203043000,-200.0,0.00020606,2]
[423537801,1780203043000,-2080.17592889,0.00020365,2]
[423537802,1780203043000,-151.0,0.00020365,2]
[423537777,1780203043000,-154.0,0.0002,2]
[423537780,1780203043000,-243.0,0.0002,2]
[423537778,1780203043000,-497.0,0.0002,2]
[423537779,1780203043000,-437.0,0.0002,2]
[423537782,1780203043000,-434.0,0.0002,2]
[423537781,1780203043000,-152.0,0.0002,2]
[423537783,1780203043000,-1066.0,0.0002,2]
[423537784,1780203043000,-220.0,0.0002,2]
[423537785,1780203043000,-200.0,0.0002,2]
[423537787,1780203043000,-500.0,0.00020025,2]
[423537792,1780203043000,-151.0,0.00020365,2]
[423537789,1780203043000,-444.18929726,0.0002014,2]
[423537775,1780203043000,-200.0,0.0002,2]
[423537799,1780203043000,-151.0,0.00020365,2]
[423537786,1780203043000,-2000.0,0.0002,7]
[423537804,1780203043000,-151.0,0.00020365,2]
[423537800,1780203043000,-151.0,0.00020365,2]
[423537798,1780203043000,-151.0,0.00020365,2]
[423537796,1780203043000,-151.0,0.00020365,2]
[423537797,1780203043000,-151.0,0.00020365,2]
[423537795,1780203043000,-151.0,0.00020365,2]
[423537791,1780203043000,-200.0,0.000202,2]
[423537788,1780203043000,-28061.07177221,0.00020066,2]
[423537790,1780203043000,-200.0,0.000202,2]
[423537793,1780203043000,-151.0,0.00020365,2]
[423537794,1780203043000,-151.0,0.00020365,2]
[423537868,1780203044000,-233.0,0.00022,2]
[423537872,1780203044000,-154.0,0.00022,2]
[423537871,1780203044000,-450.0,0.00022,2]
[423537870,1780203044000,-341.0,0.00022,2]
[423537867,1780203044000,-2177.66,0.00022,2]
[423537861,1780203044000,-272.65,0.00021918,2]
[423537865,1780203044000,-265.0,0.00022,2]
[423537864,1780203044000,-796.0,0.00022,2]
[423537863,1780203044000,-272.65,0.00021918,2]
[423537862,1780203044000,-272.65,0.00021918,2]
[423537873,1780203044000,-497.0,0.00022,2]
[423537866,1780203044000,-1801.0,0.00022,2]
[423537874,1780203044000,-437.0,0.00022,2]
[423537880,1780203044000,-42917.98793172,0.00022088,2]
[423537876,1780203044000,-152.0,0.00022,2]
[423537877,1780203044000,-434.0,0.00022,2]
[423537879,1780203044000,-2319.72410669,0.00022009,2]
[423537878,1780203044000,-220.0,0.00022,2]
[423537881,1780203044000,-1493.1,0.00022353,2]
[423537882,1780203044000,-285.1,0.00022466,2]
[423537883,1780203044000,-500.0,0.00022538,2]
[423537885,1780203044000,-649.601898,0.00022557,2]
[423537886,1780203044000,-649.601898,0.00022557,2]
[423537884,1780203044000,-649.601898,0.00022557,2]
[423537888,1780203044000,-518.696371,0.00022557,2]
[423537887,1780203044000,-649.601898,0.00022557,2]
[423537875,1780203044000,-243.0,0.00022,2]
[423537860,1780203044000,-272.65,0.00021918,2]
[423537831,1780203044000,-497.0,0.00021,2]
[423537857,1780203044000,-500.0,0.00021882,2]
[423537889,1780203044000,-518.696371,0.00022557,2]
[423537834,1780203044000,-152.0,0.00021,2]
[423537833,1780203044000,-243.0,0.00021,2]
[423537832,1780203044000,-437.0,0.00021,2]
[423537835,1780203044000,-434.0,0.00021,2]
[423537837,1780203044000,-911.89,0.00021205,2]
[423537836,1780203044000,-220.0,0.00021,2]
[423537839,1780203044000,-1667.94,0.00021273,2]
[423537841,1780203044000,-1427.79,0.00021273,2]
[423537840,1780203044000,-664.92,0.00021273,2]
[423537838,1780203044000,-500.0,0.00021244,2]
[423537843,1780203044000,-304.37,0.00021273,2]
[423537842,1780203044000,-8589.84,0.00021273,2]
[423537845,1780203044000,-160.2572065,0.00021662,2]
[423537844,1780203044000,-2236.95670847,0.00021461,2]
[423537846,1780203044000,-13405.53,0.00021752,2]
[423537847,1780203044000,-509.97,0.00021753,2]
[423537848,1780203044000,-509.97,0.00021753,2]
[423537849,1780203044000,-509.97,0.00021753,2]
[423537850,1780203044000,-509.97,0.00021753,2]
[423537851,1780203044000,-510.14706201,0.00021753,2]
[423537852,1780203044000,-1242.35,0.00021753,2]
[423537854,1780203044000,-1242.35,0.00021753,2]
[423537853,1780203044000,-1242.35,0.00021753,2]
[423537855,1780203044000,-1242.35,0.00021753,2]
[423537856,1780203044000,-1242.36530613,0.00021753,2]
[423537858,1780203044000,-480.88,0.000219,2]
[423537859,1780203044000,-5000.0,0.00021918,2]
[423537892,1780203044000,-28061.07177221,0.00022557,2]
[423537890,1780203044000,-518.696371,0.00022557,2]
[423537938,1780203044000,-919.667051,0.00023459,2]
[423537926,1780203044000,-152.0,0.00023,2]
[423537927,1780203044000,-434.0,0.00023,2]
[423537925,1780203044000,-243.0,0.00023,2]
[423537928,1780203044000,-220.0,0.00023,2]
[423537929,1780203044000,-2494.55939288,0.00023105,2]
[423537931,1780203044000,-1481.2378076,0.00023145,2]
[423537930,1780203044000,-181.08010149,0.00023145,2]
[423537932,1780203044000,-500.0,0.00023214,2]
[423537933,1780203044000,-1123.99999999,0.0002323,2]
[423537934,1780203044000,-489.165112,0.00023459,2]
[423537935,1780203044000,-489.165112,0.00023459,2]
[423537937,1780203044000,-489.165112,0.00023459,2]
[423537939,1780203044000,-919.667051,0.00023459,2]
[423537936,1780203044000,-489.165112,0.00023459,2]
[423537940,1780203044000,-919.667051,0.00023459,2]
[423537941,1780203044000,-919.667051,0.00023459,2]
[423537943,1780203044000,-13405.53,0.00023505,2]
[423537944,1780203044000,-221.043836,0.00023533,2]
[423537945,1780203044000,-221.043836,0.00023533,2]
[423537942,1780203044000,-42917.98793172,0.00023459,2]
[423537947,1780203044000,-221.043836,0.00023533,2]
[423537946,1780203044000,-221.043836,0.00023533,2]
[423537948,1780203044000,-2576.227454,0.00023533,2]
[423537949,1780203044000,-2576.227454,0.00023533,2]
[423537951,1780203044000,-2576.227454,0.00023533,2]
[423537894,1780203044000,-272.65,0.00022557,2]
[423537950,1780203044000,-2576.227454,0.00023533,2]
[423537924,1780203044000,-437.0,0.00023,2]
[423537922,1780203044000,-154.94064324,0.00023,2]
[423537923,1780203044000,-497.0,0.00023,2]
[423537919,1780203044000,-151.0,0.00023,2]
[423537895,1780203044000,-272.65,0.00022557,2]
[423537891,1780203044000,-518.696371,0.00022557,2]
[423537893,1780203044000,-272.65,0.00022557,2]
[423537896,1780203044000,-151.0,0.00022557,2]
[423537897,1780203044000,-272.65,0.00022557,2]
[423537902,1780203044000,-151.0,0.00022557,2]
[423537898,1780203044000,-1188.276205,0.00022557,2]
[423537900,1780203044000,-1188.276205,0.00022557,2]
[423537899,1780203044000,-1188.276205,0.00022557,2]